[Event "XI Continental-ch America 2016"]
[Site "San Salvador"]
[Date "2016.05.31"]
[Round "5"]
[White "Kovalyov, Anton"]
[Black "Morovic Fernandez, Ivan"]
[Result "1-0"]
[ECO "E92"]
[WhiteElo "2602"]
[BlackElo "2573"]
[PlyCount "67"]
[EventDate "2016.??.??"]
[EventCountry "ESA"]
[TimeControl "40/5400+30:1800+30"]
[WhiteClock "0:45:44"]
[BlackClock "0:00:54"]

1. Nf3 {[%emt 0:00:00]} Nf6 {[%emt 0:00:00]} 2. c4 {[%emt 0:00:00]} g6 {
[%emt 0:00:04]} 3. Nc3 {[%emt 0:00:00]} Bg7 {[%emt 0:00:03]} 4. e4 {[%emt 0:00:
00]} d6 {[%emt 0:00:09]} 5. d4 {[%emt 0:00:04]} O-O {[%emt 0:00:06]} 6. Be2 {
[%emt 0:00:05]} e5 {[%emt 0:00:14]} 7. Be3 {[%emt 0:00:08]} c6 {[%emt 0:01:13]}
8. O-O {[%emt 0:05:33]} exd4 {[%emt 0:00:46]} 9. Bxd4 {[%emt 0:00:17]} Qe7 {
[%emt 0:00:38]} 10. Qc2 {[%emt 0:02:28]} Bg4 {[%emt 0:02:11]} 11. Rad1 {
[%emt 0:02:54]} Nbd7 {[%emt 0:01:30]} 12. h3 {[%emt 0:01:03]} Bxf3 {[%emt 0:00:
09]} 13. Bxf3 {[%emt 0:00:06]} Rfe8 {[%emt 0:00:45]} 14. Rfe1 {[%emt 0:01:24]}
a6 {[%emt 0:02:20]} 15. b3 {[%emt 0:00:44]} Qe6 {[%emt 0:03:52]} 16. Be2 {
[%emt 0:09:51]} b5 {[%emt 0:36:04]} 17. Bf1 {[%emt 0:01:57]} Bh6 {[%emt 0:07:
07]} 18. Be3 {[%emt 0:06:49]} Bxe3 {[%emt 0:04:26]} 19. Rxe3 {[%emt 0:01:23]}
Nb6 {[%emt 0:09:31]} 20. Ne2 {[%emt 0:03:43]} Rac8 {[%emt 0:09:43]} 21. Nd4 {
[%emt 0:05:35]} Qe7 {[%emt 0:01:16]} 22. Qd2 {[%emt 0:02:31]} bxc4 {[%emt 0:07:
32]} 23. bxc4 {[%emt 0:01:59]} c5 {[%emt 0:04:40]} 24. Nf3 {[%emt 0:03:32]}
Nxe4 {[%emt 0:01:16]} 25. Qd3 {[%emt 0:02:19]} Qb7 {[%emt 0:02:29]} 26. Rde1 {
[%emt 0:03:19]} f5 {[%emt 0:00:42]} 27. Ng5 {[%emt 0:01:51]} d5 {[%emt 0:03:11]
} 28. cxd5 {[%emt 0:00:08]} Nd6 {[%emt 0:01:30]} 29. Rxe8+ {[%emt 0:00:40]}
Rxe8 {[%emt 0:00:15]} 30. Rxe8+ {[%emt 0:00:10]} Nxe8 {[%emt 0:00:02]} 31. Qe3
{[%emt 0:00:09]} Nf6 {[%emt 0:01:10]} 32. Qe6+ {[%emt 0:00:05]} Kg7 {[%emt 0:
00:06]} 33. Bxa6 {[%emt 0:00:06]} Qxa6 {[%emt 0:00:36]} 34. Qf7+ {[%emt 0:00:
23]} 1-0

[Event "XI Continental-ch America 2016"]
[Site "San Salvador"]
[Date "2016.05.31"]
[Round "6"]
[White "Gemy, Jose"]
[Black "Pichot, Alan"]
[Result "0-1"]
[ECO "A49"]
[WhiteElo "2410"]
[BlackElo "2532"]
[PlyCount "58"]
[EventDate "2016.??.??"]
[EventCountry "ESA"]
[TimeControl "40/5400+30:1800+30"]
[WhiteClock "0:40:14"]
[BlackClock "0:21:03"]

1. Nf3 {[%emt 0:00:00]} Nf6 {[%emt 0:00:00]} 2. d4 {[%emt 0:00:00]} g6 {
[%emt 0:00:12]} 3. g3 {[%emt 0:00:00]} Bg7 {[%emt 0:00:12]} 4. Bg2 {[%emt 0:00:
00]} O-O {[%emt 0:00:11]} 5. O-O {[%emt 0:00:00]} d6 {[%emt 0:00:11]} 6. b3 {
[%emt 0:00:15]} c5 {[%emt 0:00:22]} 7. Bb2 {[%emt 0:00:07]} cxd4 {[%emt 0:00:
29]} 8. Nxd4 {[%emt 0:00:10]} d5 {[%emt 0:00:29]} 9. Na3 {[%emt 0:00:16]} e5 {
[%emt 0:07:18]} 10. Nf3 {[%emt 0:00:11]} e4 {[%emt 0:00:06]} 11. Nd4 {[%emt 0:
00:04]} e3 {[%emt 0:05:03]} 12. f4 {[%emt 0:00:38]} Qe7 {[%emt 0:02:31]} 13. c4
{[%emt 0:08:33]} Rd8 {[%emt 0:03:58]} 14. Qc2 {[%emt 0:02:00]} Nc6 {[%emt 0:08:
00]} 15. Rad1 {[%emt 0:13:18]} Nxd4 {[%emt 0:16:10]} 16. Rxd4 {[%emt 0:00:09]}
Bf5 {[%emt 0:00:05]} 17. Qc1 {[%emt 0:00:13]} Rac8 {[%emt 0:10:44]} 18. Rfd1 {
[%emt 0:01:35]} h5 {[%emt 0:06:43]} 19. Qa1 {[%emt 0:05:49]} Ng4 {[%emt 0:08:
59]} 20. Rxd5 {[%emt 0:02:25]} Rxd5 {[%emt 0:05:37]} 21. Rxd5 {[%emt 0:01:53]}
Be4 {[%emt 0:03:57]} 22. Bxg7 {[%emt 0:14:27]} Bxg2 {[%emt 0:00:08]} 23. Kxg2 {
[%emt 0:04:03]} Qe4+ {[%emt 0:00:14]} 24. Kh3 {[%emt 0:00:04]} Nf2+ {[%emt 0:
00:07]} 25. Kh4 {[%emt 0:00:04]} Qe6 {[%emt 0:00:06]} 26. f5 {[%emt 0:00:03]}
Qe4+ {[%emt 0:00:05]} 27. Kg5 {[%emt 0:00:03]} Qg4+ {[%emt 0:01:02]} 28. Kf6 {
[%emt 0:03:06]} Re8 {[%emt 0:00:23]} 29. Qe5 {[%emt 0:04:50]} Ne4+ {[%emt 0:00:
05]} 0-1

[Event "XI Continental-ch America 2016"]
[Site "San Salvador"]
[Date "2016.05.31"]
[Round "6"]
[White "Bruzon Batista, Lazaro"]
[Black "Mareco, Sandro"]
[Result "1/2-1/2"]
[ECO "B51"]
[WhiteElo "2681"]
[BlackElo "2625"]
[PlyCount "57"]
[EventDate "2016.??.??"]
[EventCountry "ESA"]
[TimeControl "40/5400+30:1800+30"]
[WhiteClock "0:11:37"]
[BlackClock "1:02:56"]

1. e4 {[%emt 0:00:00]} c5 {[%emt 0:00:00]} 2. Nf3 {[%emt 0:00:00]} d6 {[%emt 0:
00:00]} 3. Bb5+ {[%emt 0:00:15]} Nd7 {[%emt 0:00:00]} 4. O-O {[%emt 0:00:20]}
Ngf6 {[%emt 0:00:32]} 5. Re1 {[%emt 0:00:32]} a6 {[%emt 0:00:06]} 6. Bf1 {
[%emt 0:02:06]} b6 {[%emt 0:00:21]} 7. d4 {[%emt 0:04:24]} cxd4 {[%emt 0:00:24]
} 8. Nxd4 {[%emt 0:02:51]} Bb7 {[%emt 0:00:10]} 9. c4 {[%emt 0:00:03]} e6 {
[%emt 0:01:12]} 10. Nc3 {[%emt 0:01:05]} Be7 {[%emt 0:00:07]} 11. f3 {[%emt 0:
04:47]} O-O {[%emt 0:00:06]} 12. Be3 {[%emt 0:00:03]} Rc8 {[%emt 0:00:06]} 13.
Qd2 {[%emt 0:04:32]} Qc7 {[%emt 0:00:08]} 14. Rac1 {[%emt 0:03:25]} Rfe8 {
[%emt 0:00:20]} 15. Kh1 {[%emt 0:00:35]} Qb8 {[%emt 0:00:18]} 16. a3 {[%emt 0:
02:51]} Bd8 {[%emt 0:03:09]} 17. Bg1 {[%emt 0:04:47]} h5 {[%emt 0:00:23]} 18.
Bf2 {[%emt 0:13:39]} Ne5 {[%emt 0:06:40]} 19. Na4 {[%emt 0:09:26]} Ng6 {
[%emt 0:02:12]} 20. b4 {[%emt 0:00:32]} Bc7 {[%emt 0:02:31]} 21. c5 {[%emt 0:
09:43]} b5 {[%emt 0:02:34]} 22. c6 {[%emt 0:20:53]} Ba8 {[%emt 0:01:44]} 23.
Nc3 {[%emt 0:00:06]} Bb6 {[%emt 0:09:38]} 24. a4 {[%emt 0:00:05]} e5 {[%emt 0:
00:44]} 25. Nf5 {[%emt 0:02:32]} Bxf2 {[%emt 0:00:22]} 26. Qxf2 {[%emt 0:00:04]
} Bxc6 {[%emt 0:00:08]} 27. axb5 {[%emt 0:00:40]} axb5 {[%emt 0:01:24]} 28.
Red1 {[%emt 0:02:07]} Red8 {[%emt 0:05:45]} 29. Qa2 1/2-1/2

[Event "XI Continental-ch America 2016"]
[Site "San Salvador"]
[Date "2016.05.31"]
[Round "6"]
[White "Perez, Matias"]
[Black "Liang, Awonder"]
[Result "0-1"]
[ECO "B96"]
[WhiteElo "2437"]
[BlackElo "2410"]
[PlyCount "98"]
[EventDate "2016.??.??"]
[EventCountry "ESA"]
[TimeControl "40/5400+30:1800+30"]
[WhiteClock "0:11:48"]
[BlackClock "0:10:58"]

1. e4 {[%emt 0:00:00]} c5 {[%emt 0:00:00]} 2. Nf3 {[%emt 0:00:00]} d6 {[%emt 0:
00:00]} 3. d4 {[%emt 0:00:00]} cxd4 {[%emt 0:00:00]} 4. Nxd4 {[%emt 0:00:00]}
Nf6 {[%emt 0:00:00]} 5. Nc3 {[%emt 0:00:03]} a6 {[%emt 0:00:04]} 6. Bg5 {
[%emt 0:00:11]} e6 {[%emt 0:03:09]} 7. f4 {[%emt 0:00:06]} Nbd7 {[%emt 0:00:09]
} 8. Qe2 {[%emt 0:00:37]} Qc7 {[%emt 0:01:28]} 9. O-O-O {[%emt 0:00:04]} Be7 {
[%emt 0:05:09]} 10. g4 {[%emt 0:04:58]} b5 {[%emt 0:28:37]} 11. a3 {[%emt 0:00:
15]} h6 {[%emt 0:10:05]} 12. Bh4 {[%emt 0:00:02]} Bb7 {[%emt 0:07:37]} 13. Kb1
{[%emt 0:18:32]} Qc4 {[%emt 0:10:51]} 14. Qe1 {[%emt 0:09:39]} Qc5 {[%emt 0:00:
57]} 15. f5 {[%emt 0:35:03]} e5 {[%emt 0:03:37]} 16. Nb3 {[%emt 0:00:30]} Qc7 {
[%emt 0:01:24]} 17. Bxf6 {[%emt 0:03:57]} Nxf6 {[%emt 0:01:26]} 18. Rg1 {
[%emt 0:02:01]} O-O-O {[%emt 0:07:02]} 19. Nd5 {[%emt 0:02:50]} Nxd5 {[%emt 0:
00:08]} 20. exd5 {[%emt 0:00:04]} Kb8 {[%emt 0:02:20]} 21. Na5 {[%emt 0:08:22]}
Rc8 {[%emt 0:01:58]} 22. c4 {[%emt 0:00:04]} Bh4 {[%emt 0:04:30]} 23. Qb4 {
[%emt 0:09:01]} Bf2 {[%emt 0:01:59]} 24. Rg2 {[%emt 0:00:27]} Bc5 {[%emt 0:04:
30]} 25. Qe1 {[%emt 0:00:23]} bxc4 {[%emt 0:00:31]} 26. Bxc4 {[%emt 0:05:11]}
Ka7 {[%emt 0:00:32]} 27. Nc6+ {[%emt 0:00:39]} Bxc6 {[%emt 0:00:43]} 28. dxc6 {
[%emt 0:00:01]} Qxc6 {[%emt 0:00:09]} 29. Bd5 {[%emt 0:00:18]} Qa4 {[%emt 0:00:
44]} 30. Rg3 {[%emt 0:00:59]} Bd4 {[%emt 0:01:41]} 31. Ka2 {[%emt 0:00:41]} Rc2
{[%emt 0:01:29]} 32. Rb3 {[%emt 0:00:30]} Rb8 {[%emt 0:00:50]} 33. Rxb8 {
[%emt 0:00:31]} Kxb8 {[%emt 0:00:08]} 34. Rb1 {[%emt 0:00:30]} Bc5 {[%emt 0:01:
06]} 35. Qg3 {[%emt 0:00:15]} Ka7 {[%emt 0:00:38]} 36. Bxf7 {[%emt 0:00:42]} e4
{[%emt 0:00:30]} 37. Qb3 {[%emt 0:00:32]} Qxb3+ {[%emt 0:00:12]} 38. Kxb3 {
[%emt 0:00:25]} Rxh2 {[%emt 0:00:08]} 39. Kc4 {[%emt 0:00:35]} Rd2 {[%emt 0:01:
03]} 40. b4 {[%emt 0:00:21]} Bb6 {[%emt 0:00:21]} 41. Re1 {[%emt 0:30:38]} e3 {
[%emt 0:32:03]} 42. a4 {[%emt 0:00:00]} d5+ {[%emt 0:00:00]} 43. Kb3 {[%emt 0:
00:00]} Kb7 {[%emt 0:00:00]} 44. a5 {[%emt 0:00:00]} Ba7 {[%emt 0:00:00]} 45.
Be8 {[%emt 0:00:00]} e2 {[%emt 0:00:00]} 46. Kc3 {[%emt 0:00:00]} Be3 {[%emt 0:
00:00]} 47. b5 {[%emt 0:00:00]} d4+ {[%emt 0:00:00]} 48. Kb4 {[%emt 0:00:00]}
Bf2 {[%emt 0:00:00]} 49. bxa6+ {[%emt 0:00:00]} Kb8 {[%emt 0:00:00]} 0-1

[Event "XI Continental-ch America 2016"]
[Site "San Salvador"]
[Date "2016.05.31"]
[Round "6"]
[White "Erenburg, Sergey"]
[Black "Flores, Diego"]
[Result "1-0"]
[ECO "B42"]
[WhiteElo "2587"]
[BlackElo "2592"]
[PlyCount "93"]
[EventDate "2016.??.??"]
[EventCountry "ESA"]
[TimeControl "40/5400+30:1800+30"]
[WhiteClock "0:17:59"]
[BlackClock "0:27:19"]

1. e4 {[%emt 0:00:00]} c5 {[%emt 0:00:00]} 2. Nf3 {[%emt 0:00:00]} e6 {[%emt 0:
00:00]} 3. d4 {[%emt 0:00:00]} cxd4 {[%emt 0:00:01]} 4. Nxd4 {[%emt 0:00:00]}
a6 {[%emt 0:01:10]} 5. Bd3 {[%emt 0:00:00]} Qb6 {[%emt 0:00:17]} 6. c3 {
[%emt 0:00:31]} Qc7 {[%emt 0:01:56]} 7. O-O {[%emt 0:00:49]} Nf6 {[%emt 0:08:
19]} 8. Qe2 {[%emt 0:00:54]} d6 {[%emt 0:00:44]} 9. c4 {[%emt 0:01:55]} b6 {
[%emt 0:02:47]} 10. Nc3 {[%emt 0:00:33]} Bb7 {[%emt 0:01:34]} 11. f4 {[%emt 0:
00:26]} Be7 {[%emt 0:03:35]} 12. f5 {[%emt 0:07:28]} Nc6 {[%emt 0:02:06]} 13.
Be3 {[%emt 0:05:21]} Nxd4 {[%emt 0:02:18]} 14. Bxd4 {[%emt 0:00:18]} O-O {
[%emt 0:00:38]} 15. Rae1 {[%emt 0:06:12]} Rae8 {[%emt 0:06:53]} 16. fxe6 {
[%emt 0:09:31]} fxe6 {[%emt 0:00:25]} 17. e5 {[%emt 0:00:22]} dxe5 {[%emt 0:03:
18]} 18. Bxe5 {[%emt 0:00:41]} Bd6 {[%emt 0:04:59]} 19. h3 {[%emt 0:12:41]}
Qc5+ {[%emt 0:24:31]} 20. Kh1 {[%emt 0:02:58]} Bxe5 {[%emt 0:02:45]} 21. Qxe5 {
[%emt 0:00:24]} Qc6 {[%emt 0:05:45]} 22. Ne4 {[%emt 0:23:11]} Kh8 {[%emt 0:16:
53]} 23. Rf2 {[%emt 0:08:56]} Rd8 {[%emt 0:01:55]} 24. Bb1 {[%emt 0:03:45]} Nd7
{[%emt 0:05:01]} 25. Rxf8+ {[%emt 0:01:16]} Rxf8 {[%emt 0:00:40]} 26. Qg3 {
[%emt 0:04:02]} e5 {[%emt 0:01:33]} 27. Kh2 {[%emt 0:04:38]} Qxc4 {[%emt 0:01:
47]} 28. Nd6 {[%emt 0:04:22]} Qd5 {[%emt 0:00:09]} 29. Nxb7 {[%emt 0:00:40]}
Qxb7 {[%emt 0:00:01]} 30. Qh4 {[%emt 0:00:01]} Nf6 {[%emt 0:01:55]} 31. Rxe5 {
[%emt 0:00:20]} Qc7 {[%emt 0:00:11]} 32. Qg3 {[%emt 0:00:02]} h6 {[%emt 0:01:
20]} 33. Bg6 {[%emt 0:00:53]} Qc1 {[%emt 0:00:29]} 34. b3 {[%emt 0:00:01]} Qb2
{[%emt 0:00:21]} 35. a4 {[%emt 0:00:06]} Nd7 {[%emt 0:00:36]} 36. Re6 {[%emt 0:
01:13]} Rf1 {[%emt 0:00:32]} 37. Bd3 {[%emt 0:00:49]} Qxb3 38. Qd6 {[%emt 0:01:
57]} Nf8 {[%emt 0:01:01]} 39. Rxh6+ {[%emt 0:01:31]} gxh6 {[%emt 0:00:01]} 40.
Qxh6+ {[%emt 0:00:16]} Kg8 {[%emt 0:00:07]} 41. Bxf1 {[%emt 0:30:40]} Qxa4 {
[%emt 0:30:42]} 42. Qxb6 {[%emt 0:00:00]} a5 {[%emt 0:00:00]} 43. Qc7 {[%emt 0:
00:00]} Nd7 {[%emt 0:00:00]} 44. Bc4+ {[%emt 0:00:00]} Kf8 {[%emt 0:00:00]} 45.
Qd8+ {[%emt 0:00:00]} Kg7 {[%emt 0:00:00]} 46. Qg5+ {[%emt 0:00:00]} Kf8 {
[%emt 0:00:00]} 47. Bb5 {[%emt 0:00:00]} 1-0

[Event "XI Continental-ch America 2016"]
[Site "San Salvador"]
[Date "2016.05.31"]
[Round "6"]
[White "Cordova, Emilio"]
[Black "Gonzalez, Yuri"]
[Result "1-0"]
[ECO "A05"]
[WhiteElo "2602"]
[BlackElo "2555"]
[PlyCount "121"]
[EventDate "2016.??.??"]
[EventCountry "ESA"]
[TimeControl "40/5400+30:1800+30"]
[WhiteClock "0:04:10"]
[BlackClock "0:00:54"]

1. Nf3 {[%emt 0:00:00]} Nf6 {[%emt 0:00:12]} 2. c4 {[%emt 0:00:00]} e6 {
[%emt 0:00:27]} 3. b3 {[%emt 0:00:52]} Be7 {[%emt 0:00:55]} 4. Bb2 {[%emt 0:00:
08]} O-O {[%emt 0:00:18]} 5. g3 {[%emt 0:01:35]} b6 {[%emt 0:01:49]} 6. Bg2 {
[%emt 0:00:11]} Bb7 {[%emt 0:00:08]} 7. O-O {[%emt 0:00:06]} c5 {[%emt 0:04:44]
} 8. Nc3 {[%emt 0:06:16]} d6 {[%emt 0:04:13]} 9. d4 {[%emt 0:07:30]} cxd4 {
[%emt 0:00:45]} 10. Qxd4 {[%emt 0:02:10]} Nbd7 {[%emt 0:03:06]} 11. Nb5 {
[%emt 0:11:07]} Ne8 {[%emt 0:11:27]} 12. Qe3 {[%emt 0:00:53]} a6 {[%emt 0:08:
10]} 13. Nbd4 {[%emt 0:00:08]} Nc5 {[%emt 0:07:45]} 14. a4 {[%emt 0:06:34]} Qc7
{[%emt 0:09:47]} 15. b4 {[%emt 0:19:49]} Ne4 {[%emt 0:01:45]} 16. Rfc1 {
[%emt 0:00:49]} N8f6 {[%emt 0:05:47]} 17. h3 {[%emt 0:00:04]} Qd7 {[%emt 0:07:
16]} 18. Nb3 {[%emt 0:01:07]} a5 {[%emt 0:01:08]} 19. b5 {[%emt 0:02:25]} Qc7 {
[%emt 0:01:59]} 20. Nfd4 {[%emt 0:01:06]} Rfc8 {[%emt 0:05:59]} 21. Rab1 {
[%emt 0:04:57]} Rab8 {[%emt 0:06:43]} 22. Qd3 {[%emt 0:17:03]} e5 {[%emt 0:03:
45]} 23. Nf5 {[%emt 0:00:46]} Bf8 {[%emt 0:01:57]} 24. Ne3 {[%emt 0:00:04]} Re8
{[%emt 0:03:03]} 25. Rd1 {[%emt 0:02:02]} Rbd8 {[%emt 0:00:43]} 26. Rbc1 {
[%emt 0:05:15]} g6 {[%emt 0:01:43]} 27. Nd5 {[%emt 0:01:58]} Bxd5 {[%emt 0:00:
40]} 28. cxd5 {[%emt 0:00:04]} Nc5 {[%emt 0:00:05]} 29. Qb1 {[%emt 0:01:24]}
Nfd7 {[%emt 0:01:16]} 30. Rc4 {[%emt 0:00:16]} Rc8 {[%emt 0:00:59]} 31. Nd2 {
[%emt 0:02:47]} Qd8 {[%emt 0:00:28]} 32. h4 {[%emt 0:00:05]} Bh6 {[%emt 0:01:
41]} 33. Bc1 {[%emt 0:01:29]} Qe7 {[%emt 0:01:00]} 34. Nf3 {[%emt 0:00:31]}
Bxc1 {[%emt 0:00:53]} 35. Rdxc1 {[%emt 0:00:04]} Rcd8 {[%emt 0:00:34]} 36. e4 {
[%emt 0:00:47]} Kg7 {[%emt 0:00:36]} 37. Bh3 {[%emt 0:00:04]} Nf6 {[%emt 0:01:
48]} 38. Nd2 {[%emt 0:00:09]} h6 {[%emt 0:00:26]} 39. Nf1 {[%emt 0:00:15]} Rf8
{[%emt 0:01:18]} 40. Ne3 {[%emt 0:00:03]} Rfe8 {[%emt 0:00:58]} 41. Rd1 {
[%emt 0:32:47]} h5 {[%emt 0:31:21]} 42. f3 {[%emt 0:01:20]} Rf8 {[%emt 0:00:00]
} 43. Qb2 {[%emt 0:00:00]} Rfe8 {[%emt 0:00:00]} 44. Rxc5 {[%emt 0:00:00]} dxc5
{[%emt 0:00:00]} 45. Nc4 {[%emt 0:00:00]} Qc7 {[%emt 0:00:00]} 46. d6 {[%emt 0:
00:00]} Qb8 {[%emt 0:00:00]} 47. Rd3 {[%emt 0:00:00]} Kg8 {[%emt 0:00:00]} 48.
Qd2 {[%emt 0:00:00]} Nd7 {[%emt 0:00:00]} 49. Kh2 {[%emt 0:00:00]} Kg7 {
[%emt 0:00:00]} 50. f4 {[%emt 0:00:00]} exf4 {[%emt 0:00:00]} 51. Qxf4 {
[%emt 0:00:00]} f6 {[%emt 0:00:00]} 52. Bxd7 {[%emt 0:01:41]} Rxd7 {[%emt 0:00:
00]} 53. g4 {[%emt 0:00:15]} Qb7 {[%emt 0:01:52]} 54. Re3 {[%emt 0:01:39]} hxg4
{[%emt 0:00:44]} 55. Qxg4 {[%emt 0:00:03]} Rf7 {[%emt 0:01:29]} 56. h5 {
[%emt 0:00:04]} g5 {[%emt 0:02:20]} 57. e5 {[%emt 0:00:36]} fxe5 {[%emt 0:01:
03]} 58. Nxe5 {[%emt 0:03:27]} Kh7 {[%emt 0:00:47]} 59. Nxf7 {[%emt 0:00:41]}
Rxe3 {[%emt 0:00:43]} 60. Qf5+ {[%emt 0:00:24]} Kg8 {[%emt 0:00:31]} 61. Nh6+
1-0

[Event "XI Continental-ch America 2016"]
[Site "San Salvador"]
[Date "2016.05.31"]
[Round "6"]
[White "Lenderman, Aleksandr"]
[Black "Kovalyov, Anton"]
[Result "1/2-1/2"]
[ECO "E32"]
[WhiteElo "2614"]
[BlackElo "2602"]
[PlyCount "95"]
[EventDate "2016.??.??"]
[EventCountry "ESA"]
[TimeControl "40/5400+30:1800+30"]
[WhiteClock "0:30:45"]
[BlackClock "0:31:35"]

1. d4 {[%emt 0:00:00]} Nf6 {[%emt 0:00:00]} 2. c4 {[%emt 0:00:30]} e6 {[%emt 0:
00:30]} 3. Nc3 {[%emt 0:00:00]} Bb4 {[%emt 0:00:00]} 4. Qc2 {[%emt 0:00:00]}
O-O {[%emt 0:00:00]} 5. Nf3 {[%emt 0:00:00]} c5 {[%emt 0:04:50]} 6. dxc5 {
[%emt 0:00:00]} Na6 {[%emt 0:00:44]} 7. g3 {[%emt 0:00:00]} Nxc5 {[%emt 0:01:
19]} 8. Bg2 {[%emt 0:00:00]} b6 {[%emt 0:03:18]} 9. O-O {[%emt 0:00:10]} Bb7 {
[%emt 0:01:11]} 10. Nb5 {[%emt 0:00:05]} Be4 {[%emt 0:03:27]} 11. Qd1 {[%emt 0:
00:06]} Nb7 {[%emt 0:01:04]} 12. a3 {[%emt 0:01:28]} Be7 {[%emt 0:00:07]} 13.
Bf4 {[%emt 0:00:04]} Nh5 {[%emt 0:07:20]} 14. Bc7 {[%emt 0:04:04]} Qc8 {
[%emt 0:02:53]} 15. Bd6 {[%emt 0:21:02]} Nxd6 {[%emt 0:04:43]} 16. Nxd6 {
[%emt 0:01:38]} Bxd6 {[%emt 0:00:11]} 17. Qxd6 {[%emt 0:00:04]} Qb7 {[%emt 0:
00:13]} 18. Rfd1 {[%emt 0:03:15]} Nf6 {[%emt 0:01:08]} 19. Bf1 {[%emt 0:01:31]}
Bxf3 {[%emt 0:03:04]} 20. exf3 {[%emt 0:00:18]} Rac8 {[%emt 0:00:15]} 21. f4 {
[%emt 0:03:34]} Rfd8 {[%emt 0:00:34]} 22. Rac1 {[%emt 0:03:41]} Qc7 {[%emt 0:
00:50]} 23. Qd2 {[%emt 0:01:08]} Qc5 {[%emt 0:01:16]} 24. Bg2 {[%emt 0:02:43]}
Rc7 {[%emt 0:00:08]} 25. Bf3 {[%emt 0:04:56]} Rdc8 {[%emt 0:01:01]} 26. Rc3 {
[%emt 0:00:35]} Qf5 {[%emt 0:00:41]} 27. Qd4 {[%emt 0:01:19]} h6 {[%emt 0:01:
42]} 28. h4 {[%emt 0:02:35]} d5 {[%emt 0:05:46]} 29. cxd5 {[%emt 0:06:33]} Rxc3
{[%emt 0:01:18]} 30. bxc3 {[%emt 0:00:01]} exd5 {[%emt 0:01:49]} 31. Bxd5 {
[%emt 0:10:14]} Nxd5 {[%emt 0:00:51]} 32. Qxd5 {[%emt 0:00:04]} Qxd5 {[%emt 0:
01:05]} 33. Rxd5 {[%emt 0:00:20]} Rxc3 {[%emt 0:00:06]} 34. Rd8+ {[%emt 0:06:
01]} Kh7 {[%emt 0:00:10]} 35. Rd7 {[%emt 0:00:08]} Rxa3 {[%emt 0:00:59]} 36.
Rxf7 {[%emt 0:00:06]} Kg6 {[%emt 0:03:06]} 37. Rb7 {[%emt 0:00:26]} h5 {
[%emt 0:00:45]} 38. Kg2 {[%emt 0:00:53]} Kf6 {[%emt 0:01:41]} 39. f3 {[%emt 0:
00:32]} Ra2+ {[%emt 0:15:02]} 40. Kh3 {[%emt 0:00:50]} Rf2 {[%emt 0:02:09]} 41.
Rxa7 {[%emt 0:30:08]} Rxf3 {[%emt 0:30:06]} 42. Rd7 {[%emt 0:00:33]} Re3 {
[%emt 0:01:23]} 43. Rd5 {[%emt 0:00:13]} g6 {[%emt 0:00:33]} 44. Rb5 {[%emt 0:
00:05]} Re6 {[%emt 0:00:05]} 45. Rg5 {[%emt 0:00:41]} Re3 {[%emt 0:02:24]} 46.
Rb5 {[%emt 0:00:06]} Re6 {[%emt 0:00:04]} 47. Rg5 {[%emt 0:00:05]} Re3 {
[%emt 0:00:04]} 48. Rb5 {Ke5} 1/2-1/2

[Event "XI Continental-ch America 2016"]
[Site "San Salvador"]
[Date "2016.05.31"]
[Round "6"]
[White "Morovic Fernandez, Ivan"]
[Black "Gonzalez, Bernal"]
[Result "1-0"]
[ECO "B72"]
[WhiteElo "2573"]
[BlackElo "2476"]
[PlyCount "106"]
[EventDate "2016.??.??"]
[EventCountry "ESA"]
[TimeControl "40/5400+30:1800+30"]
[WhiteClock "0:12:40"]
[BlackClock "0:12:04"]

1. e4 {[%emt 0:00:00]} c5 {[%emt 0:00:00]} 2. Nf3 {[%emt 0:00:00]} d6 {[%emt 0:
00:00]} 3. d4 {[%emt 0:00:00]} cxd4 {[%emt 0:00:00]} 4. Nxd4 {[%emt 0:00:00]}
Nf6 {[%emt 0:00:00]} 5. Nc3 {[%emt 0:00:00]} g6 {[%emt 0:00:00]} 6. Be3 {
[%emt 0:00:27]} Bg7 {[%emt 0:00:00]} 7. Be2 {[%emt 0:00:12]} O-O {[%emt 0:01:
10]} 8. Qd2 {[%emt 0:01:46]} Nc6 {[%emt 0:03:19]} 9. O-O-O {[%emt 0:00:07]} Ng4
{[%emt 0:09:26]} 10. Bxg4 {[%emt 0:00:26]} Bxg4 {[%emt 0:00:01]} 11. f3 {
[%emt 0:00:07]} Be6 {[%emt 0:00:22]} 12. Nxe6 {[%emt 0:04:41]} fxe6 {[%emt 0:
00:02]} 13. Ne2 {[%emt 0:00:06]} Ne5 {[%emt 0:11:18]} 14. Bd4 {[%emt 0:13:24]}
Rc8 {[%emt 0:11:24]} 15. b3 {[%emt 0:13:03]} a5 {[%emt 0:07:28]} 16. Kb1 {
[%emt 0:06:41]} b5 {[%emt 0:00:37]} 17. f4 {[%emt 0:02:45]} Ng4 {[%emt 0:07:15]
} 18. Bxg7 {[%emt 0:03:59]} Kxg7 {[%emt 0:00:04]} 19. Nd4 {[%emt 0:03:21]} Qd7
{[%emt 0:00:12]} 20. e5 {[%emt 0:02:30]} Nh6 {[%emt 0:04:51]} 21. Rhe1 {
[%emt 0:09:58]} d5 {[%emt 0:02:12]} 22. Qxa5 {[%emt 0:00:52]} Rxf4 {[%emt 0:01:
17]} 23. Qb6 {[%emt 0:01:57]} Kg8 {[%emt 0:04:02]} 24. Nxe6 {[%emt 0:04:01]}
Rf5 {[%emt 0:13:04]} 25. Re2 {[%emt 0:12:47]} Nf7 {[%emt 0:11:47]} 26. Nd4 {
[%emt 0:08:44]} Rxe5 {[%emt 0:00:45]} 27. Rxe5 {[%emt 0:01:10]} Nxe5 {[%emt 0:
00:05]} 28. Qxb5 {[%emt 0:00:35]} Qd6 {[%emt 0:00:36]} 29. Qe2 {[%emt 0:00:41]}
Nc6 {[%emt 0:02:52]} 30. Qe6+ {[%emt 0:01:04]} Qxe6 {[%emt 0:00:04]} 31. Nxe6 {
[%emt 0:00:02]} Nb4 {[%emt 0:02:13]} 32. Rd4 {[%emt 0:01:21]} Nxc2 {[%emt 0:01:
25]} 33. Rxd5 {[%emt 0:00:05]} Ne3 {[%emt 0:01:10]} 34. Rd2 {[%emt 0:01:57]}
Kf7 {[%emt 0:03:28]} 35. Re2 {[%emt 0:04:08]} Nd5 {[%emt 0:03:02]} 36. Ng5+ {
[%emt 0:01:37]} Kf6 {[%emt 0:00:27]} 37. Ne4+ {[%emt 0:00:32]} Kf5 {[%emt 0:00:
25]} 38. Ng3+ {[%emt 0:01:29]} Kf6 {[%emt 0:00:08]} 39. Kb2 {[%emt 0:01:29]} h5
{[%emt 0:01:37]} 40. Rf2+ {[%emt 0:00:55]} Ke5 {[%emt 0:00:34]} 41. Re2+ {
[%emt 0:30:25]} Kd4 {[%emt 0:05:19]} 42. Rd2+ {[%emt 0:00:00]} Ke5 {[%emt 0:00:
15]} 43. Ne2 {[%emt 0:00:00]} g5 {[%emt 0:02:34]} 44. a4 {[%emt 0:00:00]} g4 {
[%emt 0:04:48]} 45. Ka3 {[%emt 0:00:00]} Ne3 {[%emt 0:01:25]} 46. g3 {[%emt 0:
00:00]} Nf1 {[%emt 0:03:14]} 47. Rd7 {[%emt 0:00:00]} e6 {[%emt 0:01:06]} 48.
a5 {[%emt 0:00:00]} Ke4 {[%emt 0:02:25]} 49. a6 {[%emt 0:00:00]} Ne3 {[%emt 0:
01:16]} 50. a7 {[%emt 0:00:00]} Nd5 {[%emt 0:00:15]} 51. b4 {[%emt 0:00:00]}
Ra8 {[%emt 0:02:11]} 52. Kb3 {[%emt 0:00:00]} Nb6 {[%emt 0:00:26]} 53. Rb7 {
[%emt 0:00:00]} Kd5 1-0